[Event "Titled Tuesday Blitz May 9 Late 2023"]
[White "Marcziter, Dmitrii"]
[Black "Howell, David W L"]
[WhiteFideId "13900765"]
[BlackFideId "410608"]
[WhiteElo "2162"]
[BlackElo "2567"]
[Result "0-1"]
[Round "03"]
[TimeControl "180+2"]
[Date "2023.05.09"]
[WhiteClock "0:00:28"]
[BlackClock "0:00:10"]

1. d4 {[%clk 0:03:00]}  Nf6 {[%clk 0:02:54]} 2. c4 {[%clk 0:02:59]}  g6 {[%clk 0:02:53]} 3. Nf3 {[%clk 0:02:59]}  Bg7 {[%clk 0:02:54]} 4. g3 {[%clk 0:02:59]}  O-O {[%clk 0:02:52]} 5. Bg2 {[%clk 0:02:59]}  d6 {[%clk 0:02:52]} 6. Nc3 {[%clk 0:02:58]}  Nbd7 {[%clk 0:02:52]} 7. O-O {[%clk 0:02:57]}  e5 {[%clk 0:02:52]} 8. Qc2 {[%clk 0:02:58]}  Qe7 {[%clk 0:02:46]} 9. Rd1 {[%clk 0:02:57]}  c6 {[%clk 0:02:41]} 10. b3 {[%clk 0:02:56]}  Re8 {[%clk 0:02:39]} 11. Ba3 {[%clk 0:02:53]}  e4 {[%clk 0:02:33]} 12. Ng5 {[%clk 0:02:52]}  e3 {[%clk 0:02:32]} 13. f3 {[%clk 0:02:46]}  Nf8 {[%clk 0:02:17]} 14. Nge4 {[%clk 0:02:43]}  Nxe4 {[%clk 0:02:09]} 15. Nxe4 {[%clk 0:02:42]}  Bf5 {[%clk 0:02:09]} 16. Qc3 {[%clk 0:02:33]}  Bxe4 {[%clk 0:02:02]} 17. fxe4 {[%clk 0:02:31]}  c5 {[%clk 0:01:56]} 18. Qxe3 {[%clk 0:02:29]}  Bxd4 {[%clk 0:01:49]} 19. Rxd4 {[%clk 0:02:28]}  cxd4 {[%clk 0:01:50]} 20. Qxd4 {[%clk 0:02:28]}  Qe5 {[%clk 0:01:26]} 21. Qd1 {[%clk 0:02:27]}  Rad8 {[%clk 0:01:20]} 22. Rb1 {[%clk 0:02:26]}  f6 {[%clk 0:01:13]} 23. Bb2 {[%clk 0:02:25]}  Qc5+ {[%clk 0:01:13]} 24. Bd4 {[%clk 0:02:25]}  Qg5 {[%clk 0:01:13]} 25. Qf1 {[%clk 0:02:16]}  Nd7 {[%clk 0:01:12]} 26. Bxa7 {[%clk 0:02:04]}  b6 {[%clk 0:01:07]} 27. Qf2 {[%clk 0:02:02]}  Qc5 {[%clk 0:01:03]} 28. e5 {[%clk 0:01:51]}  Qxe5 {[%clk 0:00:49]} 29. Bd5+ {[%clk 0:01:47]}  Kg7 {[%clk 0:00:49]} 30. e4 {[%clk 0:01:46]}  f5 {[%clk 0:00:23]} 31. Rf1 {[%clk 0:01:38]}  Re7 {[%clk 0:00:17]} 32. Bxb6 {[%clk 0:01:29]}  Nxb6 {[%clk 0:00:18]} 33. Qxb6 {[%clk 0:01:28]}  Rf8 {[%clk 0:00:19]} 34. Qf2 {[%clk 0:01:22]}  Ree8 {[%clk 0:00:18]} 35. Qa7+ {[%clk 0:01:14]}  Re7 {[%clk 0:00:16]} 36. Qf2 {[%clk 0:01:12]}  Ree8 {[%clk 0:00:17]} 37. Qa7+ {[%clk 0:01:10]}  Kh8 {[%clk 0:00:17]} 38. Re1 {[%clk 0:00:55]}  f4 {[%clk 0:00:10]} 39. Qf2 {[%clk 0:00:48]}  fxg3 {[%clk 0:00:10]} 40. Qxg3 {[%clk 0:00:48]}  Rf4 {[%clk 0:00:09]} 41. Rf1 {[%clk 0:00:35]}  Ref8 {[%clk 0:00:10]} 42. Rxf4 {[%clk 0:00:34]}  Rxf4 {[%clk 0:00:11]} 43. Qh3 {[%clk 0:00:32]}  Qa1+ {[%clk 0:00:09]} 44. Kg2 {[%clk 0:00:28]}  Qf1+ {[%clk 0:00:09]} 45. Kg3 {[%clk 0:00:28]}  Qf2# {[%clk 0:00:10]} 0-1


[Site "https://www.chess.com"]

[Event "Titled Tuesday Blitz May 9 Late 2023"]
[White "Joubert, Dantelle"]
[Black "Sowa, Ryan"]
[WhiteFideId "14310813"]
[BlackFideId "30901693"]
[WhiteElo "1507"]
[BlackElo "2650"]
[Result "0-1"]
[Round "03"]
[TimeControl "180+2"]
[Date "2023.05.09"]
[WhiteClock "0:00:00"]
[BlackClock "0:01:20"]

1. d4 {[%clk 0:02:58]}  b6 {[%clk 0:03:00]} 2. e4 {[%clk 0:02:58]}  Bb7 {[%clk 0:03:01]} 3. Bd3 {[%clk 0:02:57]}  Nf6 {[%clk 0:03:01]} 4. Nc3 {[%clk 0:02:56]}  e6 {[%clk 0:03:01]} 5. a3 {[%clk 0:02:56]}  d5 {[%clk 0:03:01]} 6. e5 {[%clk 0:02:27]}  Ne4 {[%clk 0:03:02]} 7. Qe2 {[%clk 0:02:16]}  Nxc3 {[%clk 0:03:01]} 8. bxc3 {[%clk 0:02:16]}  c5 {[%clk 0:03:02]} 9. Bb5+ {[%clk 0:02:15]}  Bc6 {[%clk 0:03:02]} 10. a4 {[%clk 0:02:14]}  a6 {[%clk 0:02:58]} 11. Bxc6+ {[%clk 0:02:10]}  Nxc6 {[%clk 0:02:58]} 12. Nf3 {[%clk 0:02:10]}  Be7 {[%clk 0:02:58]} 13. O-O {[%clk 0:02:10]}  O-O {[%clk 0:02:58]} 14. Be3 {[%clk 0:02:03]}  Qc7 {[%clk 0:02:56]} 15. Rfb1 {[%clk 0:02:02]}  cxd4 {[%clk 0:02:39]} 16. cxd4 {[%clk 0:01:44]}  Na5 {[%clk 0:02:39]} 17. Bg5 {[%clk 0:01:22]}  Bxg5 {[%clk 0:02:38]} 18. Nxg5 {[%clk 0:01:23]}  h6 {[%clk 0:02:39]} 19. Nf3 {[%clk 0:01:21]}  Rfc8 {[%clk 0:02:40]} 20. Ne1 {[%clk 0:01:05]}  Qc3 {[%clk 0:02:25]} 21. Ra2 {[%clk 0:01:00]}  Qxd4 {[%clk 0:02:22]} 22. Nd3 {[%clk 0:00:51]}  Nc4 {[%clk 0:02:16]} 23. Rb4 {[%clk 0:00:42]}  b5 {[%clk 0:02:10]} 24. axb5 {[%clk 0:00:35]}  axb5 {[%clk 0:02:11]} 25. Rxa8 {[%clk 0:00:34]}  Rxa8 {[%clk 0:02:12]} 26. h3 {[%clk 0:00:29]}  Ra5 {[%clk 0:01:50]} 27. Kh2 {[%clk 0:00:26]}  Qc3 {[%clk 0:01:44]} 28. Rb3 {[%clk 0:00:25]}  Qd4 {[%clk 0:01:33]} 29. Nb4 {[%clk 0:00:16]}  Qxe5+ {[%clk 0:01:31]} 30. Qxe5 {[%clk 0:00:09]}  Nxe5 {[%clk 0:01:31]} 31. f4 {[%clk 0:00:07]}  Nc4 {[%clk 0:01:32]} 32. Nc6 {[%clk 0:00:07]}  Ra2 {[%clk 0:01:28]} 33. Nd4 {[%clk 0:00:00]}  Na3 {[%clk 0:01:20]} 0-1


[Site "https://www.chess.com"]

[Event "Titled Tuesday Blitz May 9 Late 2023"]
[White "Kostiukov, Alexandr"]
[Black "TimGrutter03"]
[WhiteFideId "14108100"]
[WhiteElo "2202"]
[BlackElo "2605"]
[Result "0-1"]
[Round "03"]
[TimeControl "180+2"]
[Date "2023.05.09"]
[WhiteClock "0:00:06"]
[BlackClock "0:01:25"]

1. g3 {[%clk 0:03:00]}  e5 {[%clk 0:02:58]} 2. c4 {[%clk 0:03:00]}  Nc6 {[%clk 0:02:55]} 3. Bg2 {[%clk 0:03:00]}  g6 {[%clk 0:02:56]} 4. Nc3 {[%clk 0:03:00]}  Bg7 {[%clk 0:02:56]} 5. e4 {[%clk 0:02:57]}  Nge7 {[%clk 0:02:53]} 6. Nge2 {[%clk 0:02:58]}  O-O {[%clk 0:02:53]} 7. O-O {[%clk 0:02:58]}  d6 {[%clk 0:02:48]} 8. d3 {[%clk 0:02:58]}  f5 {[%clk 0:02:46]} 9. Nd5 {[%clk 0:02:58]}  Be6 {[%clk 0:02:34]} 10. Be3 {[%clk 0:02:54]}  Qd7 {[%clk 0:02:29]} 11. Qd2 {[%clk 0:02:49]}  Nd8 {[%clk 0:02:28]} 12. f4 {[%clk 0:02:40]}  c6 {[%clk 0:02:25]} 13. Nxe7+ {[%clk 0:02:30]}  Qxe7 {[%clk 0:02:26]} 14. Rae1 {[%clk 0:02:21]}  Nf7 {[%clk 0:02:19]} 15. b3 {[%clk 0:02:19]}  Qd7 {[%clk 0:02:18]} 16. d4 {[%clk 0:02:15]}  fxe4 {[%clk 0:02:14]} 17. dxe5 {[%clk 0:01:59]}  dxe5 {[%clk 0:02:09]} 18. Qxd7 {[%clk 0:01:58]}  Bxd7 {[%clk 0:02:10]} 19. Bxe4 {[%clk 0:01:54]}  Rfe8 {[%clk 0:02:03]} 20. f5 {[%clk 0:01:41]}  Nd6 {[%clk 0:02:03]} 21. Nc3 {[%clk 0:00:47]}  gxf5 {[%clk 0:01:54]} 22. Rd1 {[%clk 0:00:44]}  Bf8 {[%clk 0:01:37]} 23. Bc5 {[%clk 0:00:28]}  Nxe4 {[%clk 0:01:29]} 24. Nxe4 {[%clk 0:00:25]}  fxe4 {[%clk 0:01:28]} 25. Rxf8+ {[%clk 0:00:17]}  Rxf8 {[%clk 0:01:25]} 26. Bxf8 {[%clk 0:00:06]}  Bg4 {[%clk 0:01:25]} 0-1


[Site "https://www.chess.com"]

[Event "Titled Tuesday Blitz May 9 Late 2023"]
[White "Ardila, Oscar Humberto"]
[Black "Haydon, David L"]
[WhiteFideId "4404742"]
[BlackFideId "415405"]
[WhiteElo "1918"]
[BlackElo "2326"]
[Result "0-1"]
[Round "03"]
[TimeControl "180+2"]
[Date "2023.05.09"]
[WhiteClock "0:00:17"]
[BlackClock "0:00:29"]

1. d4 {[%clk 0:02:59]}  Nf6 {[%clk 0:02:41]} 2. c4 {[%clk 0:02:59]}  e6 {[%clk 0:02:41]} 3. Nc3 {[%clk 0:02:58]}  b6 {[%clk 0:02:42]} 4. Nf3 {[%clk 0:02:58]}  Bb7 {[%clk 0:02:42]} 5. e3 {[%clk 0:02:59]}  Bb4 {[%clk 0:02:40]} 6. Bd2 {[%clk 0:02:59]}  Bxc3 {[%clk 0:02:39]} 7. Bxc3 {[%clk 0:02:59]}  d6 {[%clk 0:02:39]} 8. Be2 {[%clk 0:02:59]}  Nbd7 {[%clk 0:02:40]} 9. O-O {[%clk 0:02:59]}  O-O {[%clk 0:02:40]} 10. Rc1 {[%clk 0:02:59]}  Re8 {[%clk 0:02:40]} 11. Nd2 {[%clk 0:02:57]}  e5 {[%clk 0:02:39]} 12. Bf3 {[%clk 0:02:53]}  e4 {[%clk 0:02:36]} 13. Be2 {[%clk 0:02:52]}  Nf8 {[%clk 0:02:36]} 14. b4 {[%clk 0:02:51]}  Ng6 {[%clk 0:02:35]} 15. Nb3 {[%clk 0:02:42]}  Qe7 {[%clk 0:02:33]} 16. d5 {[%clk 0:02:42]}  Ne5 {[%clk 0:02:30]} 17. Nd4 {[%clk 0:02:40]}  a6 {[%clk 0:02:25]} 18. Nf5 {[%clk 0:02:34]}  Qd7 {[%clk 0:02:22]} 19. Nd4 {[%clk 0:02:33]}  b5 {[%clk 0:02:19]} 20. cxb5 {[%clk 0:02:28]}  Nxd5 {[%clk 0:02:17]} 21. bxa6 {[%clk 0:02:26]}  Bxa6 {[%clk 0:02:14]} 22. b5 {[%clk 0:02:08]}  Bb7 {[%clk 0:02:11]} 23. Qb3 {[%clk 0:02:08]}  Qe7 {[%clk 0:02:04]} 24. a4 {[%clk 0:02:05]}  Qg5 {[%clk 0:02:00]} 25. Kh1 {[%clk 0:02:02]}  h5 {[%clk 0:01:51]} 26. Bb2 {[%clk 0:01:51]}  Qh4 {[%clk 0:01:50]} 27. Nf5 {[%clk 0:01:39]}  Qg5 {[%clk 0:01:42]} 28. Ng3 {[%clk 0:01:38]}  Nf6 {[%clk 0:01:36]} 29. Rxc7 {[%clk 0:01:31]}  Bd5 {[%clk 0:01:32]} 30. Qd1 {[%clk 0:01:14]}  h4 {[%clk 0:01:30]} 31. Nh5 {[%clk 0:01:04]}  Nxh5 {[%clk 0:01:18]} 32. Bxh5 {[%clk 0:01:04]}  Be6 {[%clk 0:01:14]} 33. Bxe5 {[%clk 0:01:00]}  dxe5 {[%clk 0:01:10]} 34. Be2 {[%clk 0:00:49]}  h3 {[%clk 0:01:04]} 35. g3 {[%clk 0:00:49]}  Red8 {[%clk 0:01:02]} 36. Qc2 {[%clk 0:00:45]}  Rac8 {[%clk 0:00:59]} 37. Rxc8 {[%clk 0:00:43]}  Rxc8 {[%clk 0:00:58]} 38. Qb2 {[%clk 0:00:42]}  Bg4 {[%clk 0:00:54]} 39. b6 {[%clk 0:00:42]}  Qf5 {[%clk 0:00:47]} 40. a5 {[%clk 0:00:37]}  Bxe2 {[%clk 0:00:42]} 41. Qxe2 {[%clk 0:00:37]}  Rc2 {[%clk 0:00:42]} 42. Qd1 {[%clk 0:00:32]}  Rd2 {[%clk 0:00:40]} 43. f4 {[%clk 0:00:21]}  Rxd1 {[%clk 0:00:34]} 44. Rxd1 {[%clk 0:00:22]}  Qg4 {[%clk 0:00:34]} 45. Rd2 {[%clk 0:00:21]}  Qf3+ {[%clk 0:00:33]} 46. Kg1 {[%clk 0:00:21]}  Qxe3+ {[%clk 0:00:33]} 47. Rf2 {[%clk 0:00:22]}  Qe1+ {[%clk 0:00:32]} 48. Rf1 {[%clk 0:00:22]}  Qxa5 {[%clk 0:00:32]} 49. Rb1 {[%clk 0:00:21]}  Qa2 {[%clk 0:00:30]} 50. Kf1 {[%clk 0:00:17]}  Qxb1+ {[%clk 0:00:29]} 0-1


[Site "https://www.chess.com"]

[Event "Titled Tuesday Blitz May 9 Late 2023"]
[White "Spitzl, Vinzent"]
[Black "Kopacz, Grzegorz"]
[WhiteFideId "12901253"]
[BlackFideId "1109880"]
[WhiteElo "2225"]
[BlackElo "2037"]
[Result "1-0"]
[Round "03"]
[TimeControl "180+2"]
[Date "2023.05.09"]
[WhiteClock "0:01:37"]
[BlackClock "0:00:00"]

1. e4 {[%clk 0:03:00]}  c5 {[%clk 0:02:59]} 2. Nf3 {[%clk 0:03:01]}  Nc6 {[%clk 0:02:59]} 3. d4 {[%clk 0:03:01]}  cxd4 {[%clk 0:02:59]} 4. Nxd4 {[%clk 0:03:02]}  e5 {[%clk 0:03:00]} 5. Nb5 {[%clk 0:03:02]}  d6 {[%clk 0:03:00]} 6. c4 {[%clk 0:03:03]}  a6 {[%clk 0:03:00]} 7. N5c3 {[%clk 0:03:02]}  Be7 {[%clk 0:03:01]} 8. Na3 {[%clk 0:03:02]}  Be6 {[%clk 0:02:59]} 9. Be2 {[%clk 0:03:02]}  Nf6 {[%clk 0:02:59]} 10. Be3 {[%clk 0:03:01]}  O-O {[%clk 0:02:59]} 11. O-O {[%clk 0:03:01]}  Rc8 {[%clk 0:02:59]} 12. Rc1 {[%clk 0:02:54]}  Nd7 {[%clk 0:02:55]} 13. Nc2 {[%clk 0:02:52]}  Qa5 {[%clk 0:02:49]} 14. Qd2 {[%clk 0:02:45]}  Kh8 {[%clk 0:02:29]} 15. a3 {[%clk 0:02:35]}  Rfd8 {[%clk 0:02:20]} 16. b4 {[%clk 0:02:34]}  Qc7 {[%clk 0:02:20]} 17. Nd5 {[%clk 0:02:30]}  Qb8 {[%clk 0:02:16]} 18. Rfd1 {[%clk 0:02:25]}  Bxd5 {[%clk 0:00:09]} 19. cxd5 {[%clk 0:02:23]}  Na7 {[%clk 0:00:10]} 20. Na1 {[%clk 0:02:09]}  b5 {[%clk 0:00:10]} 21. Nb3 {[%clk 0:02:09]}  Nb6 {[%clk 0:00:10]} 22. Na5 {[%clk 0:02:08]}  Na4 {[%clk 0:00:10]} 23. Bg4 {[%clk 0:02:03]}  Rxc1 {[%clk 0:00:09]} 24. Rxc1 {[%clk 0:02:04]}  g6 {[%clk 0:00:07]} 25. f3 {[%clk 0:01:54]}  h5 {[%clk 0:00:07]} 26. Bh3 {[%clk 0:01:54]}  Nc8 {[%clk 0:00:07]} 27. Nc6 {[%clk 0:01:52]}  Qb7 {[%clk 0:00:07]} 28. Nxd8 {[%clk 0:01:52]}  Bxd8 {[%clk 0:00:06]} 29. Rxc8 {[%clk 0:01:52]}  Qe7 {[%clk 0:00:06]} 30. Bg5 {[%clk 0:01:45]}  f6 {[%clk 0:00:06]} 31. Be3 {[%clk 0:01:44]}  g5 {[%clk 0:00:05]} 32. Bf5 {[%clk 0:01:41]}  Kg7 {[%clk 0:00:05]} 33. h4 {[%clk 0:01:40]}  Qb7 {[%clk 0:00:02]} 34. hxg5 {[%clk 0:01:38]}  fxg5 {[%clk 0:00:02]} 35. Rxd8 {[%clk 0:01:37]}  Qc7 {[%clk 0:00:01]} 36. Rd7+ {[%clk 0:01:37]}  Qxd7 {[%clk 0:00:02]} 37. Bxd7 {[%clk 0:01:37]}  Nc3 {[%clk 0:00:00]} 38. Qxc3 {[%clk 0:01:37]} 1-0


[Site "https://www.chess.com"]

[Event "Titled Tuesday Blitz May 9 Late 2023"]
[White "Altman, Joshua"]
[Black "Rosenberg, Evan S"]
[WhiteFideId "426210"]
[BlackFideId "2019299"]
[WhiteElo "2028"]
[BlackElo "2288"]
[Result "1-0"]
[Round "03"]
[TimeControl "180+2"]
[Date "2023.05.09"]
[WhiteClock "0:00:07"]
[BlackClock "0:00:19"]

1. d4 {[%clk 0:03:00]}  d5 {[%clk 0:02:59]} 2. c4 {[%clk 0:03:01]}  e6 {[%clk 0:02:59]} 3. Nc3 {[%clk 0:03:01]}  c5 {[%clk 0:03:00]} 4. cxd5 {[%clk 0:03:00]}  cxd4 {[%clk 0:03:00]} 5. Qxd4 {[%clk 0:02:59]}  Nc6 {[%clk 0:03:00]} 6. Qd1 {[%clk 0:02:59]}  exd5 {[%clk 0:03:00]} 7. Qxd5 {[%clk 0:02:43]}  Qc7 {[%clk 0:03:00]} 8. e3 {[%clk 0:02:37]}  Nf6 {[%clk 0:02:59]} 9. Qd1 {[%clk 0:02:29]}  Bb4 {[%clk 0:02:58]} 10. Nf3 {[%clk 0:02:27]}  O-O {[%clk 0:02:57]} 11. Be2 {[%clk 0:02:21]}  Ne4 {[%clk 0:02:56]} 12. Bd2 {[%clk 0:02:08]}  Nxd2 {[%clk 0:02:50]} 13. Nxd2 {[%clk 0:02:05]}  Be6 {[%clk 0:02:46]} 14. O-O {[%clk 0:02:04]}  Rfd8 {[%clk 0:02:41]} 15. Qc2 {[%clk 0:01:59]}  Rac8 {[%clk 0:02:37]} 16. Nf3 {[%clk 0:01:54]}  h6 {[%clk 0:02:31]} 17. Rac1 {[%clk 0:01:52]}  Qa5 {[%clk 0:02:26]} 18. a3 {[%clk 0:01:48]}  Bd6 {[%clk 0:02:26]} 19. Rfd1 {[%clk 0:01:43]}  Bb8 {[%clk 0:02:23]} 20. h3 {[%clk 0:01:35]}  Ne5 {[%clk 0:02:16]} 21. Nd4 {[%clk 0:01:30]}  Bd7 {[%clk 0:02:03]} 22. Qb3 {[%clk 0:01:21]}  Qc7 {[%clk 0:01:45]} 23. f4 {[%clk 0:00:54]}  Ng6 {[%clk 0:01:18]} 24. Bf3 {[%clk 0:00:33]}  Nxf4 {[%clk 0:01:13]} 25. exf4 {[%clk 0:00:29]}  Qxf4 {[%clk 0:01:14]} 26. Nde2 {[%clk 0:00:21]}  Qh2+ {[%clk 0:01:14]} 27. Kf2 {[%clk 0:00:21]}  Be6 {[%clk 0:00:43]} 28. Qxb7 {[%clk 0:00:18]}  Rxd1 {[%clk 0:00:36]} 29. Rxd1 {[%clk 0:00:18]}  Bxh3 {[%clk 0:00:33]} 30. Be4 {[%clk 0:00:10]}  Re8 {[%clk 0:00:29]} 31. Qc6 {[%clk 0:00:07]}  Re6 {[%clk 0:00:19]} 32. Qc8+ {[%clk 0:00:07]} 1-0


[Site "https://www.chess.com"]

[Event "Titled Tuesday Blitz May 9 Late 2023"]
[White "Yeritsyan, Hayk"]
[Black "Bueno, Alfeu Junior Varela"]
[WhiteFideId "13307320"]
[BlackFideId "2108879"]
[WhiteElo "2476"]
[BlackElo "2175"]
[Result "1-0"]
[Round "03"]
[TimeControl "180+2"]
[Date "2023.05.09"]
[WhiteClock "0:00:09"]
[BlackClock "0:00:00"]

1. d4 {[%clk 0:03:00]}  e6 {[%clk 0:02:51]} 2. Nf3 {[%clk 0:03:00]}  f5 {[%clk 0:02:49]} 3. Bf4 {[%clk 0:03:00]}  b6 {[%clk 0:02:45]} 4. h3 {[%clk 0:03:00]}  Bb7 {[%clk 0:02:46]} 5. e3 {[%clk 0:03:01]}  Nf6 {[%clk 0:02:46]} 6. Be2 {[%clk 0:03:01]}  Be7 {[%clk 0:02:46]} 7. c3 {[%clk 0:03:01]}  O-O {[%clk 0:02:47]} 8. O-O {[%clk 0:03:02]}  d6 {[%clk 0:02:43]} 9. Nbd2 {[%clk 0:03:03]}  Qe8 {[%clk 0:02:44]} 10. Qb3 {[%clk 0:02:54]}  Bd5 {[%clk 0:02:41]} 11. c4 {[%clk 0:02:50]}  Bb7 {[%clk 0:02:41]} 12. c5 {[%clk 0:02:50]}  Bd5 {[%clk 0:02:41]} 13. Bc4 {[%clk 0:02:50]}  Nc6 {[%clk 0:02:34]} 14. cxd6 {[%clk 0:02:49]}  cxd6 {[%clk 0:02:21]} 15. Bxd5 {[%clk 0:02:47]}  Nxd5 {[%clk 0:02:22]} 16. Bh2 {[%clk 0:02:47]}  Kh8 {[%clk 0:02:16]} 17. Rac1 {[%clk 0:02:43]}  Rc8 {[%clk 0:02:07]} 18. a3 {[%clk 0:02:40]}  Qd7 {[%clk 0:02:02]} 19. Qa4 {[%clk 0:02:33]}  Rc7 {[%clk 0:01:53]} 20. Rc4 {[%clk 0:01:46]}  Rfc8 {[%clk 0:01:37]} 21. Rfc1 {[%clk 0:01:43]}  Kg8 {[%clk 0:01:19]} 22. Bg3 {[%clk 0:01:24]}  h6 {[%clk 0:01:17]} 23. b4 {[%clk 0:01:09]}  Kf7 {[%clk 0:01:06]} 24. Qb3 {[%clk 0:01:04]}  g5 {[%clk 0:01:03]} 25. e4 {[%clk 0:01:01]}  fxe4 {[%clk 0:00:45]} 26. Nxe4 {[%clk 0:01:01]}  Kg7 {[%clk 0:00:46]} 27. Qd3 {[%clk 0:00:24]}  Nf6 {[%clk 0:00:44]} 28. Nxf6 {[%clk 0:00:23]}  Bxf6 {[%clk 0:00:45]} 29. d5 {[%clk 0:00:22]}  exd5 {[%clk 0:00:37]} 30. Qxd5 {[%clk 0:00:20]}  Ne7 {[%clk 0:00:04]} 31. Rxc7 {[%clk 0:00:14]}  Rxc7 {[%clk 0:00:04]} 32. Rxc7 {[%clk 0:00:13]}  Qxc7 {[%clk 0:00:05]} 33. Qxd6 {[%clk 0:00:12]}  Qc1+ {[%clk 0:00:05]} 34. Kh2 {[%clk 0:00:12]}  Nf5 {[%clk 0:00:05]} 35. Qd7+ {[%clk 0:00:11]}  Kg6 {[%clk 0:00:05]} 36. Ne5+ {[%clk 0:00:10]}  Bxe5 {[%clk 0:00:05]} 37. Bxe5 {[%clk 0:00:11]}  Qc2 {[%clk 0:00:02]} 38. Qe6+ {[%clk 0:00:11]}  Kh7 {[%clk 0:00:00]} 39. Qf7+ {[%clk 0:00:09]} 1-0


[Site "https://www.chess.com"]

[Event "Titled Tuesday Blitz May 9 Late 2023"]
[White "Remolar Gallen, Jose"]
[Black "MunichMouse"]
[WhiteFideId "2215187"]
[WhiteElo "2223"]
[BlackElo "2281"]
[Result "1-0"]
[Round "03"]
[TimeControl "180+2"]
[Date "2023.05.09"]
[WhiteClock "0:00:07"]
[BlackClock "0:00:00"]

1. e4 {[%clk 0:02:56]}  c5 {[%clk 0:02:59]} 2. Nf3 {[%clk 0:02:57]}  d6 {[%clk 0:02:59]} 3. d4 {[%clk 0:02:57]}  cxd4 {[%clk 0:03:00]} 4. Nxd4 {[%clk 0:02:57]}  Nf6 {[%clk 0:03:00]} 5. Nc3 {[%clk 0:02:58]}  a6 {[%clk 0:03:01]} 6. Bc4 {[%clk 0:02:57]}  Qc7 {[%clk 0:03:01]} 7. Bb3 {[%clk 0:02:56]}  e6 {[%clk 0:03:01]} 8. O-O {[%clk 0:02:55]}  Nc6 {[%clk 0:03:01]} 9. Re1 {[%clk 0:02:46]}  Na5 {[%clk 0:02:59]} 10. Bg5 {[%clk 0:02:42]}  Be7 {[%clk 0:02:58]} 11. Qe2 {[%clk 0:02:25]}  b5 {[%clk 0:02:54]} 12. Rad1 {[%clk 0:02:21]}  Nxb3 {[%clk 0:02:53]} 13. axb3 {[%clk 0:02:19]}  Bb7 {[%clk 0:02:53]} 14. f3 {[%clk 0:02:00]}  Rc8 {[%clk 0:02:51]} 15. Kh1 {[%clk 0:01:48]}  O-O {[%clk 0:02:39]} 16. b4 {[%clk 0:01:25]}  Ne8 {[%clk 0:02:35]} 17. Bxe7 {[%clk 0:01:21]}  Qxe7 {[%clk 0:02:34]} 18. Nb3 {[%clk 0:01:21]}  Rc4 {[%clk 0:02:21]} 19. Na2 {[%clk 0:01:20]}  Qc7 {[%clk 0:02:17]} 20. c3 {[%clk 0:01:18]}  Qb6 {[%clk 0:02:13]} 21. Na5 {[%clk 0:01:16]}  Rc8 {[%clk 0:02:12]} 22. Nc1 {[%clk 0:01:08]}  Nf6 {[%clk 0:02:01]} 23. Nxb7 {[%clk 0:01:06]}  Qxb7 {[%clk 0:02:01]} 24. Rxd6 {[%clk 0:01:05]}  Rfd8 {[%clk 0:01:59]} 25. Red1 {[%clk 0:01:05]}  Rxd6 {[%clk 0:01:59]} 26. Rxd6 {[%clk 0:01:06]}  Ne8 {[%clk 0:01:51]} 27. Rd4 {[%clk 0:01:04]}  Qc7 {[%clk 0:01:35]} 28. Nb3 {[%clk 0:01:02]}  e5 {[%clk 0:01:31]} 29. Rd5 {[%clk 0:01:00]}  Nf6 {[%clk 0:01:31]} 30. Rd1 {[%clk 0:00:58]}  Rd8 {[%clk 0:01:26]} 31. Nc5 {[%clk 0:00:55]}  Rd6 {[%clk 0:01:22]} 32. Rxd6 {[%clk 0:00:49]}  Qxd6 {[%clk 0:01:22]} 33. Qd3 {[%clk 0:00:49]}  Qxd3 {[%clk 0:01:19]} 34. Nxd3 {[%clk 0:00:50]}  Nd7 {[%clk 0:01:19]} 35. g3 {[%clk 0:00:43]}  Kf8 {[%clk 0:01:16]} 36. Kg2 {[%clk 0:00:40]}  Ke7 {[%clk 0:01:15]} 37. f4 {[%clk 0:00:40]}  f6 {[%clk 0:01:16]} 38. Kf3 {[%clk 0:00:40]}  Kd6 {[%clk 0:01:16]} 39. h4 {[%clk 0:00:38]}  Kc6 {[%clk 0:00:42]} 40. b3 {[%clk 0:00:37]}  Kd6 {[%clk 0:00:36]} 41. Kg4 {[%clk 0:00:35]}  g6 {[%clk 0:00:33]} 42. h5 {[%clk 0:00:35]}  Ke6 {[%clk 0:00:29]} 43. hxg6 {[%clk 0:00:12]}  hxg6 {[%clk 0:00:29]} 44. Kf3 {[%clk 0:00:13]}  Kd6 {[%clk 0:00:25]} 45. Ke3 {[%clk 0:00:14]}  Kc6 {[%clk 0:00:22]} 46. g4 {[%clk 0:00:09]}  Kd6 {[%clk 0:00:15]} 47. c4 {[%clk 0:00:08]}  Ke6 {[%clk 0:00:10]} 48. f5+ {[%clk 0:00:06]}  gxf5 {[%clk 0:00:10]} 49. exf5+ {[%clk 0:00:07]}  Kd6 {[%clk 0:00:07]} 50. Nf2 {[%clk 0:00:07]}  Ke7 {[%clk 0:00:03]} 51. Ne4 {[%clk 0:00:07]}  Nb6 {[%clk 0:00:00]} 52. Kd3 {[%clk 0:00:07]} 1-0


[Site "https://www.chess.com"]

[Event "Titled Tuesday Blitz May 9 Late 2023"]
[White "Escalante Ramirez, Rafael"]
[Black "marik_spb"]
[WhiteFideId "3900177"]
[WhiteElo "2250"]
[BlackElo "2442"]
[Result "0-1"]
[Round "03"]
[TimeControl "180+2"]
[Date "2023.05.09"]
[WhiteClock "0:00:00"]
[BlackClock "0:00:15"]

1. Nf3 {[%clk 0:03:00]}  Nf6 {[%clk 0:02:58]} 2. d4 {[%clk 0:03:00]}  d5 {[%clk 0:02:57]} 3. c4 {[%clk 0:03:00]}  e6 {[%clk 0:02:57]} 4. Nc3 {[%clk 0:02:59]}  Be7 {[%clk 0:02:56]} 5. cxd5 {[%clk 0:02:59]}  exd5 {[%clk 0:02:56]} 6. Bg5 {[%clk 0:02:59]}  O-O {[%clk 0:02:56]} 7. e3 {[%clk 0:03:00]}  Bf5 {[%clk 0:02:55]} 8. Bd3 {[%clk 0:02:58]}  Bxd3 {[%clk 0:02:50]} 9. Qxd3 {[%clk 0:02:59]}  Nbd7 {[%clk 0:02:49]} 10. O-O {[%clk 0:02:58]}  c6 {[%clk 0:02:49]} 11. Rab1 {[%clk 0:02:51]}  Re8 {[%clk 0:02:49]} 12. b4 {[%clk 0:02:48]}  Ne4 {[%clk 0:02:46]} 13. Bf4 {[%clk 0:02:32]}  Ndf6 {[%clk 0:02:27]} 14. Rfc1 {[%clk 0:02:08]}  Rc8 {[%clk 0:02:17]} 15. Na4 {[%clk 0:02:01]}  Bd6 {[%clk 0:01:49]} 16. Bxd6 {[%clk 0:01:55]}  Qxd6 {[%clk 0:01:50]} 17. Nc5 {[%clk 0:01:52]}  b6 {[%clk 0:01:43]} 18. Na4 {[%clk 0:01:44]}  Ng4 {[%clk 0:01:42]} 19. Rc2 {[%clk 0:01:31]}  Nexf2 {[%clk 0:01:30]} 20. Rxf2 {[%clk 0:01:30]}  Rxe3 {[%clk 0:01:30]} 21. Qd2 {[%clk 0:01:26]}  Rce8 {[%clk 0:01:10]} 22. Rbf1 {[%clk 0:00:54]}  Nxf2 {[%clk 0:00:32]} 23. Rxf2 {[%clk 0:00:48]}  f6 {[%clk 0:00:32]} 24. Nb2 {[%clk 0:00:45]}  Qe7 {[%clk 0:00:20]} 25. Kf1 {[%clk 0:00:38]}  Qe4 {[%clk 0:00:19]} 26. Nd1 {[%clk 0:00:34]}  Qb1 {[%clk 0:00:19]} 27. g3 {[%clk 0:00:29]}  Rd3 {[%clk 0:00:17]} 28. Qc2 {[%clk 0:00:21]}  Qxd1+ {[%clk 0:00:17]} 29. Qxd1 {[%clk 0:00:18]}  Rxd1+ {[%clk 0:00:18]} 30. Kg2 {[%clk 0:00:18]}  Re4 {[%clk 0:00:18]} 31. Rc2 {[%clk 0:00:17]}  Re6 {[%clk 0:00:15]} 32. b5 {[%clk 0:00:16]}  cxb5 {[%clk 0:00:14]} 33. Rc8+ {[%clk 0:00:16]}  Kf7 {[%clk 0:00:15]} 34. Rc7+ {[%clk 0:00:16]}  Re7 {[%clk 0:00:15]} 35. Rc8 {[%clk 0:00:14]}  Rd3 {[%clk 0:00:15]} 36. Nh4 {[%clk 0:00:10]}  Re2+ {[%clk 0:00:15]} 37. Kh3 {[%clk 0:00:10]}  Rxd4 {[%clk 0:00:14]} 38. Nf5 {[%clk 0:00:06]}  Rc4 {[%clk 0:00:13]} 39. Nd6+ {[%clk 0:00:05]}  Kg6 {[%clk 0:00:14]} 40. Nxc4 {[%clk 0:00:00]}  bxc4 {[%clk 0:00:15]} 0-1


[Site "https://www.chess.com"]